{"text_format":"1","workbook":"xlsx","n_sheets":3,"sheets":["Hoja2","CONCILIACIONES","LDF BP"],"not_rendered":{"charts":0,"images":3,"macros":1,"external_links":2,"defined_names":16,"comments":0,"pivot_tables":0},"unopened":[],"bounds":{"document_bytes":16777216,"sheet_cells":100000,"rows_first":2000,"rows_last":500,"rows_between":2000,"halvings":0,"cell_chars":16384,"cell_head_chars":4096},"cells_cut":0,"cells_raw":0,"read":"whole","date_system":"1900"}

{"sheet":"Hoja2","index":0,"n_rows":34,"n_cols":3,"rows_kept":34,"cut":false,"hidden":true,"merged":[]}
["MESES","DIAS","AÑO"]
["Enero",1,2018]
["Febrero",31,2019]
["Marzo",null,2020]
["Abril",null,2021]
["Mayo",null,2022]
["Junio",null,2023]
["Julio",null,2024]
["Agosto",null,2025]
["Septiembre",null,2026]
["Octubre",null,2027]
["Noviembre",null,2028]
["Diciembre",null,2029]
[null,null,2030]
[null,null,2031]
[null,null,2032]
[null,null,2033]
[null,null,2034]
[null,null,2035]
[null,null,2036]
[null,null,2037]
[null,null,2038]
[null,null,2039]
[null,null,2040]
[null,null,2041]
[null,null,2042]
[null,null,2043]
[null,null,2044]
[null,null,2045]
[null,null,2046]
[null,null,2047]
[null,null,2048]
[null,null,2049]
[null,null,2050]

{"sheet":"CONCILIACIONES","index":1,"n_rows":72,"n_cols":12,"rows_kept":72,"cut":false,"hidden":true,"merged":[[1,1,1,4],[2,1,2,4],[3,1,3,4],[6,1,6,2],[25,1,25,2]]}
[null,null,null,null,"ANEXO 5"]
[null,"H. AYUNTAMIENTO DEL MUNICIPIO DE VERACRUZ, VERACRUZ"]
[null,"CONCILIACIONES CONTABLES - PRESUPUESTALES"]
[null,"CORRESPONDIENTE DEL 01 DE FEBRERO AL 29 DE FEBRERO 2020"]
[]
[null,"Conciliación entre los Ingresos Presupuestarios y Contables"]
[null,"Concepto",null,null,"$"]
[null,"1. Ingresos Presupuestarios",null,null,{"$f":"+#REF!","v":{"$error":"#REF!"}}]
[]
[null,"2. Más ingresos contables no presupuestarios",null,null,{"$f":"SUM(D11:D15)","v":{"$error":"#REF!"}}]
["4.3.2",null,"Incremento por variación de inventarios",0]
["4.3.3",null,"Disminución del exceso de estimaciones por pérdida o deterioro u obsolescencia",0]
["4.3.4",null,"Disminución del exceso de provisiones",0]
["4.3.9",null,"Otros ingresos y beneficios varios",0]
[null,null,"Otros ingresos contables no presupuestarios",{"$f":"-#REF!","v":{"$error":"#REF!"}}]
[]
[null,"3. Menos ingresos presupuestarios no contables",null,null,{"$f":"SUM(D18:D21)","v":{"$error":"#REF!"}}]
[null,null,"Productos de capital",0]
[null,null,"Aprovechamientos capital",{"$f":"+K34+K35","v":99737778.039999962}]
[null,null,"Ingresos derivados de financiamientos",{"$f":"+#REF!","v":{"$error":"#REF!"}}]
[null,null,"Otros Ingresos presupuestarios no contables",{"$f":"+K36","v":130000000}]
[null,null,null,null,null,null,"COMPROBACIÓN","DIFERENCIA"]
[null,"4. Ingresos Contables (4 = 1 + 2 - 3)",null,null,{"$f":"+E8+E10-E17","v":{"$error":"#REF!"}},null,421499159.88000005,{"$f":"+E23-G23","v":{"$error":"#REF!"}}]
[]
[null,"Conciliación entre los Egresos Presupuestarios y Contables"]
[null,"Concepto",null,null,"$"]
[null,"1. Total de egresos (presupuestarios)",null,null,{"$f":"+#REF!","v":{"$error":"#REF!"}}]
[]
[null,"2. Menos egresos presupuestarios no contables",null,null,{"$f":"SUM(D30:D59)","v":{"$error":"#REF!"}}]
["1.2.4.1",null,"Mobiliario y equipo de administración",{"$f":"+#REF!","v":{"$error":"#REF!"}}]
["1.2.4.2",null,"Mobiliario y equipo educacional y recreativo",{"$f":"+#REF!","v":{"$error":"#REF!"}}]
["1.2.4.3",null,"Equipo e instrumental médico y de laboratorio",{"$f":"+#REF!","v":{"$error":"#REF!"}}]
["1.2.4.4",null,"Vehículos y equipo de transporte",{"$f":"+#REF!","v":{"$error":"#REF!"}},null,null,"Activos Intangibles",null,"INTEGRACION DEL DEVENGO PRESUPUESTAL EN ENERO 2020"]
["1.2.4.5",null,"Equipo de defensa y seguridad",{"$f":"+#REF!","v":{"$error":"#REF!"}},null,null,null,null,"Remanentes Fiscales",null,99737778.039999962,"APROVECHAMIENTOS"]
["1.2.4.6",null,"Maquinaria, otros equipos y herramientas",{"$f":"+#REF!","v":{"$error":"#REF!"}},null,null,null,null,"Fideicomiso centro Histórico",null,0,"APROVECHAMIENTOS"]
["1.2.4.7",null,"Colecciones, Obras de Arte y Objetos Valiosos",{"$f":"+#REF!","v":{"$error":"#REF!"}},null,null,null,null,"Remanente de Participaciones",null,130000000,"PARTICIPACIONES"]
["1.2.4.8",null,"Activos biológicos",{"$f":"+#REF!","v":{"$error":"#REF!"}},null,null,null,null,"RECURSO ZOFEMAT (REMANENTE)",null,0,"PARTICIPACIONES (CONVENIOS)"]
[null,null,"Activos Intangibles",{"$f":"+#REF!","v":{"$error":"#REF!"}},null,null,null,null,"FONDO ZOFEMAT (REMANENTE)",null,0,"PARTICIPACIONES (CONVENIOS)"]
[null,null,"Bienes inmuebles",0,null,null,null,null,"FONDO DE HIDROCARBUROS MARITIMOS(REMANENTE)",null,0,"PARTICIPACIONES (CONVENIOS)"]
["1.2.3.1",null,"Terrenos",null,null,null,null,null,null,null,{"$f":"SUM(K34:K39)","v":229737778.03999996}]
["1.2.3.2",null,"Viviendas"]
["1.2.3.3",null,"Edificios no Habitacionales"]
["1.2.3.4",null,"Infraestructura"]
["1.2.3.9",null,"Otros Bienes Inmuebles"]
[]
["1.2.5",null,"Activos intangibles",0]
[null,null,"Obra pública en bienes propios",0]
["1.2.3.5",null,"Construcciones en Proceso en Bienes de Dominio Público",{"$f":"+#REF!","v":{"$error":"#REF!"}}]
["1.2.3.6",null,"Construcciones en Proceso en Bienes Propios",{"$f":"+#REF!","v":{"$error":"#REF!"}}]
["1.2.1.4",null,"Acciones y participaciones de capital",0]
[null,null,"Compra de títulos y valores",0]
[null,null,"Inversiones en fideicomisos, mandatos y otros análogos",{"$f":"+#REF!","v":{"$error":"#REF!"}}]
[null,null,"Provisiones para contingencias y otras erogaciones especiales",0]
["5.5.2.2",null,"Provisiones de Pasivos a Largo Plazo"]
[null,null,"Amortización de la deuda publica",0]
["2.1.3",null,"Porción a Corto Plazo de la Deuda Pública a Largo Plazo",{"$f":"+'[2]ANALISIS EGR'!$H$75","v":12798086.310000001}]
["2.2.3",null,"Deuda Pública a Largo Plazo"]
[null,null,"Adeudos de ejercicios fiscales anteriores (ADEFAS)",{"$f":"+'[2]ANALISIS EGR'!$H$81","v":0}]
[null,null,"Otros Egresos Presupuestales No Contables",0]
[]
[]
[null,"3. Más gastos contables no presupuestales",null,null,{"$f":"SUM(D63:D69)","v":{"$error":"#REF!"}}]
["5.5.1",null,"Estimaciones, depreciaciones, deterioros, obsolescencia y amortizaciones",{"$f":"+#REF!","v":{"$error":"#REF!"}}]
["5.5.2",null,"Provisiones",{"$f":"+#REF!","v":{"$error":"#REF!"}}]
["5.5.3",null,"Disminución de Inventarios",{"$f":"+#REF!","v":{"$error":"#REF!"}}]
["5.5.4",null,"Aumento por insuficiencia de estimaciones por pérdida o deterioro u obsolescencia",{"$f":"+#REF!","v":{"$error":"#REF!"}}]
["5.5.5",null,"Aumento por insuficiencia de provisiones",{"$f":"+#REF!","v":{"$error":"#REF!"}}]
["5.5.9",null,"Otros Gastos",{"$f":"+#REF!","v":{"$error":"#REF!"}}]
[null,null,"Otros Gastos Contables No Presupuestales",{"$f":"+#REF!","v":{"$error":"#REF!"}}]
[]
[null,null,null,null,null,null,"COMPROBACIÓN","DIFERENCIA"]
[null,"4. Total de Gasto Contable (4 = 1 - 2 + 3)",null,null,{"$f":"+E27-E29+E62","v":{"$error":"#REF!"}},null,253069190.67000002,{"$f":"+E72-G72","v":{"$error":"#REF!"}}]

{"sheet":"LDF BP","index":2,"n_rows":51,"n_cols":7,"rows_kept":51,"cut":false,"hidden":false,"merged":[[0,2,0,5],[2,2,2,5],[3,2,3,5],[4,2,4,5],[1,2,1,5]]}
[null,null,"FORMATO 4 BALANCE PRESUPUESTARIO LDF",null,null,null,"INDICE"]
[null,null,"H. Ayuntamiento del Municipio de Veracruz, Ver."]
[null,null,"Balance Presupuestario - LDF"]
[null,null,"Del 1 de Enero al 31 de Diciembre de 2024"]
[null,null,"(PESOS)"]
["OI N1",null,"Concepto (c)","Estimado / \nAprobado (d)","Devengado","Recaudado/\nPagado"]
[null,null,"A. Ingresos Totales (A=A1+A2+A3)",2828072129.5500002,3285584783.8500004,3285584783.8500004]
[1,null,"        A1. Ingresos Libre Disposición",2060438063.5500002,2521232977.6700001,2521232977.6700001]
[2,null,"        A2. Transferencias Federales Etiquetadas",775134066,772823915.57000017,772823915.57000017]
[null,null,"        A3. Financiamiento Neto",-7500000,-8472109.3900000006,-8472109.3900000006]
[null,null,"B. Egresos Presupuestarios (B=B1+B2)",2828072129.5499992,3499413798.6899991,3483409135.5699997]
[1,null,"        B1. Gasto No Etiquetado (sin incluir Amortización de la Deuda Pública) ",2060438063.5500004,2736424508.039999,2720419844.9199996]
[2,null,"        B2. Gasto Etiquetado (sin incluir Amortización de la Deuda Pública) ",767634065.99999893,762989290.64999998,762989290.64999998]
[null,null,"C. Remanentes del Ejercicio Anterior (C=C1+C2)",null,489997159.07000005,489997159.07000005]
[null,null,"        C1. Remanente de Ingresos de Libre Disposición aplicados en el periodo",null,489123415.84000003,489123415.84000003]
[null,null,"        C2. Remanente de Transferencias Federales Etiquetadas aplicados en el periodo",null,873743.23,873743.23]
[null,null,"I. Balance Presupuestario (I=A-B+C)",9.5367431640625E-7,276168144.23000133,292172807.35000074]
[null,null,"II. Balance Presupuestario sin Financiamiento Neto (II=I-A3)",7500000.0000009537,284640253.62000132,300644916.74000072]
[null,null,"III. Balance Presupuestario sin Financiamiento Neto y sin Remanentes del Ejercicio Anterior (III=II-C)",7500000.0000009537,-205356905.44999874,-189352242.32999933]
[null,null,"Concepto","Aprobado","Devengado","Pagado"]
[null,null,"E. Intereses, Comisiones y Gastos de la Deuda (E=E1+E2)",13500000,12425874.960000001,12425874.960000001]
[1,"92,93 Y 94","        E1.  Intereses, Comisiones y Gastos de la Deuda con Gasto No Etiquetado",0,0,0]
[2,"92,93 Y 94","        E2. Intereses, Comisiones y Gastos de la Deuda con Gasto Etiquetado",13500000,12425874.960000001,12425874.960000001]
[null,null,"IV. Balance Primario (IV=III+E)",21000000.000000954,-192931030.48999873,-176926367.36999932]
[null,null,"Concepto","Estimado / \nAprobado (d)","Devengado","Recaudado/\nPagado"]
[null,null,"F. Financiamiento (F=F1+F2)",0,0,0]
[null,null,"        F1. Financiamiento con Fuente de Pago de Ingresos de Libre Disposición",0,0,0]
[null,null,"        F2. Financiamiento con Fuente de Pago de Transferencias Federales Etiquetadas",0,0,0]
[null,null,"G. Amortización de la Deuda (G=G1+G2)",7500000,8472109.3900000006,8472109.3900000006]
[1,91,"        G1. Amortización de la Deuda Pública con Gasto No Etiquetado",0,0,0]
[2,91,"        G2. Amortización de la Deuda Pública con Gasto Etiquetado",7500000,8472109.3900000006,8472109.3900000006]
[null,null,"A3. Financiamiento Neto (A3=F-G)",-7500000,-8472109.3900000006,-8472109.3900000006]
[null,null,"Concepto","Estimado / \nAprobado (d)","Devengado","Recaudado/\nPagado"]
[null,null,"A1. Ingresos de Libre Disposición",2060438063.5500002,2521232977.6700001,2521232977.6700001]
[null,null,"A3.1 Financiamiento Neto con Fuente de Pago de Ingresos de Libre Disposición (A3.1=F1-G1)",0,0,0]
[null,null,"        F1. Financiamiento con Fuente de Pago de Ingresos de Libre Disposición",0,0,0]
[null,null,"        G1. Amortización de la Deuda Pública con Gasto No Etiquetado",0,0,0]
[null,null,"B1. Gasto No Etiquetado (sin incluir Amortización de la Deuda Pública)",2060438063.5500004,2736424508.039999,2720419844.9199996]
[null,null,"C1. Remanentes de Ingresos de Libre Disposición aplicados en el periodo",null,489123415.84000003,489123415.84000003]
[null,null,"V. Balance Presupuestario de Recursos Disponibles (V=A1+A3.1-B1+C1)",-2.384185791015625E-7,273931885.4700011,289936548.59000051]
[null,null,"VI. Balance Presupuestario de Recursos Disponibles sin Financiemiento Neto (VI=V-A3.1)",-2.384185791015625E-7,273931885.4700011,289936548.59000051]
[null,null,"Concepto","Estimado / \nAprobado (d)","Devengado","Recaudado/\nPagado"]
[null,null,"A2. Transferencias Federales Etiquetadas",775134066,772823915.57000017,772823915.57000017]
[null,null,"A3.2 Financiamiento Neto con Fuente de Pago de Transferencias Federales Etiquetadas (A3.2=F2-G2)",-7500000,-8472109.3900000006,-8472109.3900000006]
[null,null,"        F2. Financiamiento con Fuente de Pago de Transferencias Federales Etiquetadas",0,0,0]
[null,null,"        G2. Amortización de la Deuda Pública con Gasto Etiquetado",7500000,8472109.3900000006,8472109.3900000006]
[null,null,"B2. Gasto Etiquetado (sin incluir Amortización de la Deuda Pública)",767634065.99999893,762989290.64999998,762989290.64999998]
[null,null,"C2. Remanentes de Transferencia Federales Etiquetadas aplicados en el periodo",null,873743.23,873743.23]
[null,null,"VII. Balance Presupuestario de Recursos Etiquetados (VII=A2+A3.2-B2+C2)",1.0728836059570313E-6,2236258.7600002098,2236258.7600002098]
[null,null,"VIII. Balance Presupuestario de Recursos Etiquetados sin Financiamiento Neto (VIII=VII-A3.2)",7500000.0000010729,10708368.150000211,10708368.150000211]
[null,null,"Bajo protesta de decir verdad declaramos que la información es razonablemente correcta y responsabilidad del emisor"]